Workbook

Sheet Diverse Angestellt.verhältnisse
A1: Personalkostenkalkulation für bestehendes Dienstverhältnis/Neuanstellung/Aufstockung
B3: =(21.38+3.9+3+1.53)/100 -> 29.81% | C3: Lohnnebenkosten Stand 01.01.2019 | E3: =(20.88+3.9+3+1.53)/100 -> 29.31% | F3: Lohnnebenkosten Sonderzahlungen Stand 01.01.2019
B17: Bitte hier die Dienstnehmer/-innen eintragen | G17: Beispiel
A18: Name des Dienstnehmers/der Dienstnehmerin | G18: Maria Musterfrau
A19: Bitte das entspr. Dienstverhältnis aus der Drop-down-Liste auswählen | G19: Bestehendes Dienstverhältnis
A20: Tätigkeitsbereich | G20: Projektleiterin
A21: Monatsbruttobezug (exkl. LNK*) bitte nur Zahl eingeben! | G21: € 2,500.00
A22: Arbeitszeit/Woche in Stunden bitte nur Zahl eingeben! | G22: 38.5
A23: Stunden/Woche für das Projekt bitte nur Zahl eingeben! | G23: 5
A24: Zeitraum der Projekttätigkeit (Projektstart/Projektende) TT.MM.JJJJ | G24: 2018-01-01
G25: 2019-06-30
A26: Projektlaufzeit in Monaten | B26: =IF(B25="","",ROUND(12*YEARFRAC(EOMONTH(B24,0),EOMONTH(B25,0),0)-1/12,0)+IF(DAY(B24)<15,0.5,0)+IF(DAY(B25)<15,0,0.5)) ->  | C26: =IF(C25="","",ROUND(12*YEARFRAC(EOMONTH(C24,0),EOMONTH(C25,0),0)-1/12,0)+IF(DAY(C24)<15,0.5,0)+IF(DAY(C25)<15,0,0.5)) ->  | G26: 18
A27: Monatsbruttobezug Projektstunden | B27: =B21/B22*B23 ->  | D27: =D21/D22*D23 ->  | E27: =E21/E22*E23 ->  | G27: =G21/G22*G23 -> 324.68
A28: Bruttobezug für den Projektzeitraum | B28: =B27*B26 ->  | C28: =C27*C26 ->  | E28: =E27*E26 ->  | G28: =G27*G26 -> 5,844.16
A29: Aliquote Sonderzahlungen für den Projektzeitraum | B29: =B27/12*B26*2 ->  | D29: =D27/12*D26*2 ->  | E29: =E27/12*E26*2 ->  | G29: =G27/12*G26*2 -> 974.03
A30: LNK | B30: =ROUND(B28*$B$3,2) ->  | C30: =ROUND(C28*$B$3,2) ->  | D30: =ROUND(D28*$B$3,2) ->  | E30: =ROUND(E28*$B$3,2) ->  | F30: =ROUND(F28*$B$3,2) ->  | G30: =G28*$B$3 -> 1,742.14
A31: LNK SZ | B31: =ROUND(B29*$E$3,2) ->  | C31: =ROUND(C29*$E$3,2) ->  | D31: =ROUND(D29*$E$3,2) ->  | E31: =ROUND(E29*$E$3,2) ->  | F31: =ROUND(F29*$E$3,2) ->  | G31: =G29*$E$3 -> 285.49
A32: Bruttobezug inkl. LNK für den Projektzeitraum** | B32: =IFERROR(ROUND(SUM(B28:B31),2),"") ->  | C32: =IFERROR(ROUND(SUM(C28:C31),2),"") ->  | D32: =IFERROR(ROUND(SUM(D28:D31),2),"") ->  | G32: =SUM(G28:G31) -> € 8,845.81
A33: Bruttostundensatz inkl. LNK*** | B33: =IFERROR(ROUND(SUM(B28:B31)/B26/4.33/B23,2),"") ->  | C33: =IFERROR(ROUND(SUM(C28:C31)/C26/4.33/C23,2),"") ->  | D33: =IFERROR(ROUND(SUM(D28:D31)/D26/4.33/D23,2),"") ->  | E33: =IFERROR(ROUND(SUM(E28:E31)/E26/4.33/E23,2),"") ->  | G33: =ROUND(SUM(G28:G31)/G26/4.33/G23,2) -> € 22.70
A34: * Die Lohnnebenkosten fallen für den Arbeitgeber an und werden auch als indirekte Personalzusatzkosten bezeichnet (u.a. Arbeitgeberanteile an der Sozialversicherung)
A35: ** dient zum Übertrag in das Budget unter "Betrag"
A36: *** dient zum Übertrag unter "Anmerkungen"

Sheet Freie Dienstnehmer
A1: Personalkostenkalkulation für freie Dienstnehmer
B3: =(20.88+1.53)/100 -> 22.41% | C3: Lohnnebenkosten Stand 01.01.2019
B17: Bitte hier die Dienstnehmer/-innen eintragen | G17: Beispiel
A18: Name des Dienstnehmers/der Dienstnehmerin | G18: Maria Musterfrau
A19: Tätigkeitsbereich | G19: wissensch. MA
A20: Dienstnehmer/in ab | G20: 2017-07-01
A21: Monatsbruttobezug (exkl. LNK*) bitte nur Zahl eingeben! | G21: € 490.00
A22: Arbeitszeit/Woche in Stunden bitte nur Zahl eingeben! | G22: 5
A23: Zeitraum der Projekttätigkeit (Projektstart/Projektende) TT.MM.JJJJ | G23: 2017-07-01
G24: 2018-12-31
A25: Projektlaufzeit in Monaten | B25: =IF(B24="","",ROUND(12*YEARFRAC(EOMONTH(B23,0),EOMONTH(B24,0),0)-1/12,0)+IF(DAY(B23)<15,0.5,0)+IF(DAY(B24)<15,0,0.5)) ->  | G25: 18
A26: Bruttobezug für den Projektzeitraum | B26: =B21*B25 ->  | C26: =C21*C25 ->  | G26: =G21*G25 -> 8,820.00
A27: LNK | B27: =ROUND(B26*$B$3,2) ->  | G27: 1,976.56
A28: Bruttobezug inkl. LNK für den Projektzeitraum** | B28: =IFERROR(ROUND(SUM(B26:B27),2),"") ->  | G28: € 10,796.56
A29: Bruttostundensatz inkl. LNK*** | B29: =IFERROR(ROUND(SUM(B26:B27)/B25/4.33/B22,2),"") ->  | G29: € 27.70
A30: * Die Lohnnebenkosten fallen für den Arbeitgeber an und werden auch als indirekte Personalzusatzkosten bezeichnet (u.a. Arbeitgeberanteile an der Sozialversicherung)
A31: ** dient zum Übertrag in das Budget unter "Betrag"
A32: *** dient zum Übertrag unter "Anmerkungen"

Sheet 

Sheet 
A1: Bestehendes Dienstverhältnis
A2: Neuanstellung
A3: Aufstockung
